[Event "Late-Titled-Tuesday-Blitz-February-13-2024"]
[Site "Chess.com"]
[Date "2024.02.13"]
[Round "1"]
[White "romulocardoso"]
[Black "gahryman"]
[Result "0-1"]
[WhiteElo "2359"]
[BlackElo "2690"]
[TimeControl "180+1"]
[EndTime "14:06:03 PST"]
[Termination "gahryman won by resignation"]

1. e4 {[%clk 0:03:00.9]} 1... c5 {[%clk 0:02:59.1]} 2. Nf3 {[%clk 0:03:01.3]}
2... Nc6 {[%clk 0:02:59.4]} 3. d4 {[%clk 0:03:01.8]} 3... cxd4 {[%clk
0:02:59.5]} 4. Nxd4 {[%clk 0:03:02.7]} 4... e5 {[%clk 0:03:00]} 5. Nb5 {[%clk
0:03:02.9]} 5... d6 {[%clk 0:03:00.5]} 6. N1c3 {[%clk 0:03:03.2]} 6... a6 {[%clk
0:03:00.6]} 7. Na3 {[%clk 0:03:03.7]} 7... Be7 {[%clk 0:03:01.3]} 8. Bd3 {[%clk
0:03:01.8]} 8... Nf6 {[%clk 0:02:58.6]} 9. Bg5 {[%clk 0:03:00.9]} 9... O-O
{[%clk 0:02:50.1]} 10. O-O {[%clk 0:02:58.4]} 10... Be6 {[%clk 0:02:28.3]} 11.
Bxf6 {[%clk 0:02:52.3]} 11... Bxf6 {[%clk 0:02:27.5]} 12. Nd5 {[%clk 0:02:52.7]}
12... Bxd5 {[%clk 0:02:12.5]} 13. exd5 {[%clk 0:02:52.7]} 13... Ne7 {[%clk
0:02:13.2]} 14. c4 {[%clk 0:02:52.3]} 14... e4 {[%clk 0:02:11.2]} 15. Bxe4
{[%clk 0:02:52.3]} 15... Bxb2 {[%clk 0:02:10.7]} 16. Bxh7+ {[%clk 0:02:52.4]}
16... Kxh7 {[%clk 0:02:01.4]} 17. Qc2+ {[%clk 0:02:51.9]} 17... Ng6 {[%clk
0:01:59.5]} 18. Qxb2 {[%clk 0:02:52.2]} 18... Qg5 {[%clk 0:01:53]} 19. Qc3
{[%clk 0:02:38.2]} 19... Rac8 {[%clk 0:01:36.4]} 20. Qg3 {[%clk 0:02:27.5]}
20... Qxg3 {[%clk 0:01:32.6]} 21. hxg3 {[%clk 0:02:22.5]} 21... Ne5 {[%clk
0:01:32.7]} 22. Rab1 {[%clk 0:02:22.8]} 22... Rc7 {[%clk 0:01:28.7]} 23. Rb6
{[%clk 0:02:22.3]} 23... Rd8 {[%clk 0:01:28.1]} 24. f4 {[%clk 0:02:20.6]} 24...
Nd3 {[%clk 0:01:14.8]} 25. Rf3 {[%clk 0:02:02.1]} 25... Nc5 {[%clk 0:01:13]} 26.
g4 {[%clk 0:01:56.4]} 26... Re7 {[%clk 0:01:10.7]} 27. f5 {[%clk 0:01:53.1]}
27... f6 {[%clk 0:01:06.7]} 28. Nc2 {[%clk 0:01:36.8]} 28... Re4 {[%clk
0:01:06.1]} 29. g5 {[%clk 0:01:33.4]} 29... fxg5 {[%clk 0:00:54.2]} 30. f6
{[%clk 0:01:33.2]} 30... gxf6 {[%clk 0:00:54.1]} 31. Rxf6 {[%clk 0:01:33.7]}
31... Rxc4 {[%clk 0:00:52.6]} 32. Ne3 {[%clk 0:01:34.2]} 32... Rc1+ {[%clk
0:00:48]} 33. Kh2 {[%clk 0:01:33.4]} 33... Kg7 {[%clk 0:00:48.4]} 34. Rfxd6
{[%clk 0:01:32.6]} 34... Rh8+ {[%clk 0:00:48.5]} 35. Kg3 {[%clk 0:01:32.2]}
35... Ne4+ {[%clk 0:00:48.8]} 36. Kg4 {[%clk 0:01:32.7]} 36... Rh4+ {[%clk
0:00:33.2]} 37. Kf5 {[%clk 0:01:30.3]} 37... Rf4+ {[%clk 0:00:33.3]} 38. Ke5
{[%clk 0:01:28.9]} 38... Nxd6 {[%clk 0:00:34]} 39. Kxd6 {[%clk 0:01:24.8]} 39...
Rf6+ {[%clk 0:00:32.9]} 40. Ke7 {[%clk 0:01:24.3]} 40... Rxb6 {[%clk 0:00:32.5]}
41. d6 {[%clk 0:01:24.7]} 41... Re1 {[%clk 0:00:31.2]} 42. d7 {[%clk 0:01:23.5]}
42... Rxe3+ {[%clk 0:00:29.6]} 43. Kd8 {[%clk 0:01:24.4]} 0-1

[Event "Late-Titled-Tuesday-Blitz-February-13-2024"]
[Site "Chess.com"]
[Date "2024.02.13"]
[Round "1"]
[White "sari07"]
[Black "Miguelito"]
[Result "0-1"]
[WhiteElo "2406"]
[BlackElo "2762"]
[TimeControl "180+1"]
[EndTime "14:06:05 PST"]
[Termination "Miguelito won on time"]

1. d4 {[%clk 0:03:00.9]} 1... Nf6 {[%clk 0:02:58.1]} 2. Nc3 {[%clk 0:03:00.3]}
2... d5 {[%clk 0:02:58.1]} 3. Bf4 {[%clk 0:02:59.6]} 3... a6 {[%clk 0:02:58.1]}
4. e3 {[%clk 0:02:57.6]} 4... b5 {[%clk 0:02:58.2]} 5. Bd3 {[%clk 0:02:51.9]}
5... Bb7 {[%clk 0:02:56.2]} 6. Nf3 {[%clk 0:02:48.6]} 6... e6 {[%clk 0:02:53]}
7. Ne2 {[%clk 0:02:44.8]} 7... c5 {[%clk 0:02:48.3]} 8. c3 {[%clk 0:02:44.6]}
8... Nc6 {[%clk 0:02:45]} 9. O-O {[%clk 0:02:43.6]} 9... Be7 {[%clk 0:02:43.5]}
10. Ng3 {[%clk 0:02:33.8]} 10... h6 {[%clk 0:02:42.3]} 11. dxc5 {[%clk
0:02:01.1]} 11... Bxc5 {[%clk 0:02:38.4]} 12. e4 {[%clk 0:02:01.3]} 12... g5
{[%clk 0:02:29.3]} 13. Bc1 {[%clk 0:01:23.5]} 13... dxe4 {[%clk 0:02:24.5]} 14.
Nxe4 {[%clk 0:01:24.4]} 14... Nxe4 {[%clk 0:02:24.6]} 15. Bxe4 {[%clk
0:01:24.7]} 15... Qxd1 {[%clk 0:02:25]} 16. Rxd1 {[%clk 0:01:25.4]} 16... f5
{[%clk 0:02:25.4]} 17. Bxc6+ {[%clk 0:01:12.3]} 17... Bxc6 {[%clk 0:02:25.2]}
18. Ne5 {[%clk 0:01:13.1]} 18... Bd5 {[%clk 0:02:19.5]} 19. Be3 {[%clk
0:00:45.4]} 19... Bxe3 {[%clk 0:02:09.1]} 20. fxe3 {[%clk 0:00:46.3]} 20... O-O
{[%clk 0:01:58.8]} 21. Rd4 {[%clk 0:00:39.2]} 21... Rab8 {[%clk 0:01:52.2]} 22.
Nd7 {[%clk 0:00:37.7]} 22... Kf7 {[%clk 0:01:46.6]} 23. Nxf8 {[%clk 0:00:35.2]}
23... Kxf8 {[%clk 0:01:46.8]} 24. a4 {[%clk 0:00:22.6]} 24... bxa4 {[%clk
0:01:46.2]} 25. c4 {[%clk 0:00:18.1]} 25... Be4 {[%clk 0:01:44.3]} 26. Rxa4
{[%clk 0:00:15.1]} 26... Rxb2 {[%clk 0:01:43]} 27. Rxa6 {[%clk 0:00:15.6]} 27...
Ke7 {[%clk 0:01:41.5]} 28. c5 {[%clk 0:00:11.1]} 28... Rxg2+ {[%clk 0:01:40.1]}
29. Kf1 {[%clk 0:00:11.5]} 29... Rc2 {[%clk 0:01:40.5]} 30. Rdd6 {[%clk
0:00:11.1]} 30... Bd5 {[%clk 0:01:38.8]} 31. Ra7+ {[%clk 0:00:11.2]} 31... Kf6
{[%clk 0:01:38.7]} 32. Rc7 {[%clk 0:00:09.5]} 32... Ke5 {[%clk 0:01:37.7]} 33.
Ke1 {[%clk 0:00:03.5]} 33... Ke4 {[%clk 0:01:35.5]} 34. Kd1 {[%clk 0:00:03.8]}
34... Bb3 {[%clk 0:01:33.8]} 35. Ke1 {[%clk 0:00:01]} 35... Kxe3 {[%clk
0:01:33.8]} 36. Kf1 {[%clk 0:00:01.4]} 36... Bd5 {[%clk 0:01:31]} 0-1

[Event "Late-Titled-Tuesday-Blitz-February-13-2024"]
[Site "Chess.com"]
[Date "2024.02.13"]
[Round "1"]
[White "deribas12345"]
[Black "effefe"]
[Result "1-0"]
[WhiteElo "2649"]
[BlackElo "2301"]
[TimeControl "180+1"]
[EndTime "14:06:09 PST"]
[Termination "deribas12345 won on time"]

1. d4 {[%clk 0:02:56.8]} 1... Nf6 {[%clk 0:02:59.5]} 2. c4 {[%clk 0:02:55.2]}
2... g6 {[%clk 0:02:59.6]} 3. Nc3 {[%clk 0:02:54.7]} 3... Bg7 {[%clk 0:03:00.2]}
4. e4 {[%clk 0:02:55]} 4... d6 {[%clk 0:03:00.2]} 5. Nge2 {[%clk 0:02:55.2]}
5... O-O {[%clk 0:03:00.6]} 6. Ng3 {[%clk 0:02:55.4]} 6... e5 {[%clk 0:03:01]}
7. d5 {[%clk 0:02:55.7]} 7... c6 {[%clk 0:03:00.4]} 8. Be2 {[%clk 0:02:55.4]}
8... cxd5 {[%clk 0:03:00.9]} 9. cxd5 {[%clk 0:02:56.3]} 9... Nbd7 {[%clk
0:03:01.5]} 10. O-O {[%clk 0:02:55.5]} 10... a5 {[%clk 0:03:02.1]} 11. Be3
{[%clk 0:02:52.5]} 11... Nc5 {[%clk 0:03:01.7]} 12. f3 {[%clk 0:02:51.4]} 12...
h5 {[%clk 0:03:00.1]} 13. Bg5 {[%clk 0:02:50.9]} 13... Qb6 {[%clk 0:02:58.9]}
14. Kh1 {[%clk 0:02:47.5]} 14... Qxb2 {[%clk 0:02:57.3]} 15. Nb5 {[%clk
0:02:47.1]} 15... Rd8 {[%clk 0:02:34.9]} 16. Rb1 {[%clk 0:02:24.3]} 16... Qxa2
{[%clk 0:02:29]} 17. Nc3 {[%clk 0:02:14.2]} 17... Qa3 {[%clk 0:02:23.7]} 18. Qc2
{[%clk 0:02:14.1]} 18... Na6 {[%clk 0:02:11.3]} 19. Be3 {[%clk 0:01:51.5]} 19...
Nb4 {[%clk 0:01:40.9]} 20. Qd2 {[%clk 0:01:51.1]} 20... Bd7 {[%clk 0:01:24.4]}
21. Ra1 {[%clk 0:01:43]} 21... Qb3 {[%clk 0:01:20.2]} 22. Rfc1 {[%clk
0:01:41.4]} 22... Rdc8 {[%clk 0:01:02.5]} 23. Nf1 {[%clk 0:01:26.5]} 23... Kh7
{[%clk 0:00:36.9]} 24. Bg5 {[%clk 0:01:09.6]} 24... Ng8 {[%clk 0:00:33.4]} 25.
Ne3 {[%clk 0:01:04.5]} 25... f6 {[%clk 0:00:08.6]} 26. Bd1 {[%clk 0:01:04]} 1-0

[Event "Late-Titled-Tuesday-Blitz-February-13-2024"]
[Site "Chess.com"]
[Date "2024.02.13"]
[Round "1"]
[White "DraningWaterHi"]
[Black "ozates"]
[Result "0-1"]
[WhiteElo "2210"]
[BlackElo "2572"]
[TimeControl "180+1"]
[EndTime "14:06:09 PST"]
[Termination "ozates won by resignation"]

1. d4 {[%clk 0:02:47.9]} 1... Nf6 {[%clk 0:02:59.4]} 2. Bf4 {[%clk 0:02:46.1]}
2... c5 {[%clk 0:02:59.1]} 3. e3 {[%clk 0:02:45.9]} 3... g6 {[%clk 0:02:58.2]}
4. Nf3 {[%clk 0:02:44.3]} 4... Bg7 {[%clk 0:02:58.4]} 5. Nc3 {[%clk 0:02:40.9]}
5... O-O {[%clk 0:02:58.3]} 6. Be2 {[%clk 0:02:36.4]} 6... cxd4 {[%clk
0:02:57.1]} 7. exd4 {[%clk 0:02:36.4]} 7... d6 {[%clk 0:02:57.5]} 8. O-O {[%clk
0:02:36.2]} 8... Nc6 {[%clk 0:02:56.5]} 9. h3 {[%clk 0:02:36]} 9... Bf5 {[%clk
0:02:55.8]} 10. a3 {[%clk 0:02:31.5]} 10... Rc8 {[%clk 0:02:54.4]} 11. Bd3
{[%clk 0:02:30.5]} 11... Bxd3 {[%clk 0:02:49.6]} 12. Qxd3 {[%clk 0:02:31.4]}
12... Na5 {[%clk 0:02:48.6]} 13. Ne4 {[%clk 0:02:12.4]} 13... Qb6 {[%clk
0:02:25.8]} 14. Nxf6+ {[%clk 0:02:06.8]} 14... Bxf6 {[%clk 0:02:25.7]} 15. b3
{[%clk 0:02:07.3]} 15... Rc7 {[%clk 0:02:20]} 16. Rab1 {[%clk 0:02:01.9]} 16...
Rfc8 {[%clk 0:02:20.1]} 17. Rfc1 {[%clk 0:02:01.7]} 17... Rc3 {[%clk 0:02:19.3]}
18. Qd2 {[%clk 0:01:54]} 18... Qc6 {[%clk 0:02:13.7]} 19. d5 {[%clk 0:01:40]}
19... Qa6 {[%clk 0:02:01.2]} 20. a4 {[%clk 0:01:20.9]} 20... b5 {[%clk
0:01:49.6]} 21. axb5 {[%clk 0:00:57.5]} 21... Qxb5 {[%clk 0:01:48.6]} 22. Be3
{[%clk 0:00:58]} 22... Nb7 {[%clk 0:01:26.4]} 23. Bxa7 {[%clk 0:00:52.1]} 23...
Nc5 {[%clk 0:01:26.5]} 24. Nd4 {[%clk 0:00:30.2]} 24... Bxd4 {[%clk 0:01:22.4]}
25. Qxd4 {[%clk 0:00:29.8]} 25... Nxb3 {[%clk 0:01:23]} 26. Qh4 {[%clk
0:00:20.4]} 26... Qa6 {[%clk 0:00:56.9]} 27. Qxe7 {[%clk 0:00:14.5]} 27... Nxc1
{[%clk 0:00:55.2]} 28. Bd4 {[%clk 0:00:12.9]} 28... Ne2+ {[%clk 0:00:54.1]} 0-1

[Event "Late-Titled-Tuesday-Blitz-February-13-2024"]
[Site "Chess.com"]
[Date "2024.02.13"]
[Round "1"]
[White "Jarrahi2452"]
[Black "Misterfox120"]
[Result "1-0"]
[WhiteElo "2822"]
[BlackElo "2434"]
[TimeControl "180+1"]
[EndTime "14:06:12 PST"]
[Termination "Jarrahi2452 won on time"]

1. d4 {[%clk 0:03:00.9]} 1... d5 {[%clk 0:02:55]} 2. c4 {[%clk 0:03:00.6]} 2...
e6 {[%clk 0:02:46.9]} 3. Nc3 {[%clk 0:03:00.2]} 3... a6 {[%clk 0:02:28.3]} 4.
cxd5 {[%clk 0:02:58.5]} 4... exd5 {[%clk 0:02:26.1]} 5. Nf3 {[%clk 0:02:58.1]}
5... c6 {[%clk 0:02:24.1]} 6. Qc2 {[%clk 0:02:50.4]} 6... Bd6 {[%clk 0:02:20.1]}
7. e4 {[%clk 0:02:41]} 7... dxe4 {[%clk 0:01:20.3]} 8. Nxe4 {[%clk 0:02:40.7]}
8... Bb4+ {[%clk 0:01:16.4]} 9. Nc3 {[%clk 0:02:37.1]} 9... Ne7 {[%clk
0:01:14.4]} 10. Bd3 {[%clk 0:02:33.9]} 10... g6 {[%clk 0:01:14]} 11. h3 {[%clk
0:02:32.4]} 11... O-O {[%clk 0:01:12.6]} 12. O-O {[%clk 0:02:31.9]} 12... Bf5
{[%clk 0:01:11.6]} 13. Bg5 {[%clk 0:02:28.3]} 13... Bxd3 {[%clk 0:01:07.6]} 14.
Qxd3 {[%clk 0:02:27.6]} 14... f6 {[%clk 0:00:59.7]} 15. Bxf6 {[%clk 0:02:23.2]}
15... Rxf6 {[%clk 0:00:56.9]} 16. Qc4+ {[%clk 0:02:23]} 16... Nd5 {[%clk
0:00:54.3]} 17. Nxd5 {[%clk 0:02:22.9]} 17... Qxd5 {[%clk 0:00:53.3]} 18. Qxb4
{[%clk 0:02:22.5]} 18... Nd7 {[%clk 0:00:53.7]} 19. Rfe1 {[%clk 0:02:15.4]}
19... Raf8 {[%clk 0:00:48.6]} 20. Re3 {[%clk 0:02:08.9]} 20... b5 {[%clk
0:00:41.4]} 21. Qb3 {[%clk 0:02:04.3]} 21... Nb6 {[%clk 0:00:40.4]} 22. Qxd5+
{[%clk 0:02:01.2]} 22... Nxd5 {[%clk 0:00:41.3]} 23. Re4 {[%clk 0:02:01.5]}
23... Kf7 {[%clk 0:00:37]} 24. Rc1 {[%clk 0:01:58.4]} 24... Rc8 {[%clk
0:00:32.4]} 25. a3 {[%clk 0:01:52.3]} 25... Nb6 {[%clk 0:00:30]} 26. b3 {[%clk
0:01:46.5]} 26... a5 {[%clk 0:00:26.9]} 27. Ne5+ {[%clk 0:01:42.2]} 27... Kg7
{[%clk 0:00:26.8]} 28. g4 {[%clk 0:01:39.1]} 28... a4 {[%clk 0:00:26.3]} 29.
bxa4 {[%clk 0:01:33.7]} 29... Nxa4 {[%clk 0:00:27.2]} 30. g5 {[%clk 0:01:32.4]}
30... Rd6 {[%clk 0:00:26.6]} 31. Ng4 {[%clk 0:01:28]} 31... Rcd8 {[%clk
0:00:23.6]} 32. Re7+ {[%clk 0:01:25.4]} 32... Kf8 {[%clk 0:00:21.7]} 33. Rxh7
{[%clk 0:01:24.8]} 1-0

[Event "Late-Titled-Tuesday-Blitz-February-13-2024"]
[Site "Chess.com"]
[Date "2024.02.13"]
[Round "1"]
[White "PolandHussars"]
[Black "FM_Kappeler"]
[Result "1-0"]
[WhiteElo "2613"]
[BlackElo "2265"]
[TimeControl "180+1"]
[EndTime "14:06:13 PST"]
[Termination "PolandHussars won by checkmate"]

1. e4 {[%clk 0:03:00.9]} 1... c5 {[%clk 0:02:58.9]} 2. Ne2 {[%clk 0:03:00.5]}
2... Nc6 {[%clk 0:02:58.9]} 3. g3 {[%clk 0:02:59.5]} 3... e6 {[%clk 0:02:56.6]}
4. Bg2 {[%clk 0:02:58.5]} 4... Nf6 {[%clk 0:02:55.2]} 5. O-O {[%clk 0:02:55.6]}
5... Be7 {[%clk 0:02:51.8]} 6. f4 {[%clk 0:02:48.8]} 6... d5 {[%clk 0:02:48]} 7.
e5 {[%clk 0:02:45.7]} 7... Nd7 {[%clk 0:02:41.6]} 8. c3 {[%clk 0:02:46.1]} 8...
b6 {[%clk 0:02:39.5]} 9. d4 {[%clk 0:02:46.2]} 9... a5 {[%clk 0:02:36.2]} 10.
Be3 {[%clk 0:02:45.8]} 10... Ba6 {[%clk 0:02:35.5]} 11. Nd2 {[%clk 0:02:45.1]}
11... Rc8 {[%clk 0:02:34.7]} 12. Nf3 {[%clk 0:02:41.9]} 12... cxd4 {[%clk
0:02:26.4]} 13. cxd4 {[%clk 0:02:38.4]} 13... Nb4 {[%clk 0:02:24.3]} 14. Ne1
{[%clk 0:02:38.6]} 14... f5 {[%clk 0:02:15.3]} 15. a3 {[%clk 0:02:25.3]} 15...
Nc6 {[%clk 0:02:14.7]} 16. Rf2 {[%clk 0:02:20.8]} 16... O-O {[%clk 0:02:13.6]}
17. Bf3 {[%clk 0:02:18.2]} 17... Rf7 {[%clk 0:02:07.7]} 18. g4 {[%clk
0:02:17.7]} 18... fxg4 {[%clk 0:02:05]} 19. Bxg4 {[%clk 0:02:17.8]} 19... Nf8
{[%clk 0:02:04.9]} 20. f5 {[%clk 0:02:13.3]} 20... Bh4 {[%clk 0:02:01]} 21. Rf3
{[%clk 0:02:03.4]} 21... exf5 {[%clk 0:01:54.1]} 22. Rxf5 {[%clk 0:01:55.2]}
22... Rxf5 {[%clk 0:01:49.3]} 23. Bxf5 {[%clk 0:01:56.1]} 23... Bg5 {[%clk
0:01:49]} 24. Qd2 {[%clk 0:01:54.2]} 24... Bxe3+ {[%clk 0:01:39]} 25. Qxe3
{[%clk 0:01:55.1]} 25... Rc7 {[%clk 0:01:30.7]} 26. Nf3 {[%clk 0:01:50.1]} 26...
Ne7 {[%clk 0:01:14.4]} 27. Bh3 {[%clk 0:01:41.6]} 27... Neg6 {[%clk 0:01:13.5]}
28. Ng3 {[%clk 0:01:36.5]} 28... Rc2 {[%clk 0:01:10.5]} 29. b4 {[%clk
0:01:26.8]} 29... a4 {[%clk 0:01:09]} 30. Re1 {[%clk 0:01:20.2]} 30... Qc7
{[%clk 0:00:58.9]} 31. Ng5 {[%clk 0:01:12.2]} 31... Rc3 {[%clk 0:00:51]} 32. Qf2
{[%clk 0:01:09.2]} 32... Rxa3 {[%clk 0:00:41.5]} 33. e6 {[%clk 0:01:07.8]} 33...
Rd3 {[%clk 0:00:31.8]} 34. e7 {[%clk 0:01:04.1]} 34... Bb5 {[%clk 0:00:21.3]}
35. Qf7+ {[%clk 0:01:01.3]} 35... Kh8 {[%clk 0:00:20.9]} 36. Qxf8+ {[%clk
0:01:00.1]} 36... Nxf8 {[%clk 0:00:19.8]} 37. exf8=Q# {[%clk 0:01:01]} 1-0

[Event "Late-Titled-Tuesday-Blitz-February-13-2024"]
[Site "Chess.com"]
[Date "2024.02.13"]
[Round "1"]
[White "KetiTsatsalashvili"]
[Black "baki83"]
[Result "0-1"]
[WhiteElo "2455"]
[BlackElo "2856"]
[TimeControl "180+1"]
[EndTime "14:06:15 PST"]
[Termination "baki83 won by resignation"]

1. d4 {[%clk 0:03:00.9]} 1... d5 {[%clk 0:02:59.8]} 2. Nf3 {[%clk 0:03:00.7]}
2... Nf6 {[%clk 0:02:59.4]} 3. e3 {[%clk 0:02:59.2]} 3... b6 {[%clk 0:02:58.9]}
4. Bd3 {[%clk 0:02:58]} 4... Bb7 {[%clk 0:02:59.4]} 5. b3 {[%clk 0:02:57.6]}
5... e6 {[%clk 0:03:00]} 6. O-O {[%clk 0:02:57.7]} 6... Nbd7 {[%clk 0:03:00.6]}
7. Bb2 {[%clk 0:02:57]} 7... Bd6 {[%clk 0:03:01.2]} 8. Ne5 {[%clk 0:02:56.9]}
8... O-O {[%clk 0:03:01.4]} 9. Nd2 {[%clk 0:02:55.7]} 9... Ne4 {[%clk
0:03:01.8]} 10. f3 {[%clk 0:02:43]} 10... Nxd2 {[%clk 0:02:58.2]} 11. Qxd2
{[%clk 0:02:43.9]} 11... Nb8 {[%clk 0:02:54.7]} 12. f4 {[%clk 0:02:25]} 12... f6
{[%clk 0:02:52.2]} 13. Nf3 {[%clk 0:02:21.5]} 13... c5 {[%clk 0:02:52.1]} 14. c4
{[%clk 0:02:19.4]} 14... Nd7 {[%clk 0:02:47.9]} 15. Rad1 {[%clk 0:02:15.7]}
15... Qe7 {[%clk 0:02:46.1]} 16. Qc2 {[%clk 0:02:15.7]} 16... f5 {[%clk
0:02:46.2]} 17. Ne5 {[%clk 0:02:15.2]} 17... Nf6 {[%clk 0:02:46.7]} 18. cxd5
{[%clk 0:02:11.9]} 18... Bxd5 {[%clk 0:02:46.4]} 19. Qe2 {[%clk 0:02:05.5]}
19... Rac8 {[%clk 0:02:42.7]} 20. Ba6 {[%clk 0:01:59.2]} 20... Rc7 {[%clk
0:02:41.5]} 21. Ba3 {[%clk 0:01:53.6]} 21... Ne4 {[%clk 0:02:38.9]} 22. Rc1
{[%clk 0:01:46.8]} 22... cxd4 {[%clk 0:02:27.2]} 23. Bxd6 {[%clk 0:01:43.6]}
23... Qxd6 {[%clk 0:02:26.1]} 24. exd4 {[%clk 0:01:39.7]} 24... Ba8 {[%clk
0:02:10]} 25. Rxc7 {[%clk 0:01:34.7]} 25... Qxc7 {[%clk 0:02:10.9]} 26. Qb2
{[%clk 0:01:27]} 26... Qd6 {[%clk 0:02:05.5]} 27. Rd1 {[%clk 0:01:21.6]} 27...
Rd8 {[%clk 0:01:57.9]} 28. a3 {[%clk 0:01:13]} 28... Nf6 {[%clk 0:01:50.3]} 29.
b4 {[%clk 0:01:12]} 29... Ng4 {[%clk 0:01:42.6]} 30. Be2 {[%clk 0:00:58.8]}
30... Ne3 {[%clk 0:01:39.6]} 31. Rd3 {[%clk 0:00:38.1]} 31... Nxg2 {[%clk
0:01:37.6]} 32. Qd2 {[%clk 0:00:32.1]} 32... Nh4 {[%clk 0:01:33.2]} 33. Qe1
{[%clk 0:00:26]} 33... Qd5 {[%clk 0:01:32.6]} 34. Nf3 {[%clk 0:00:18.3]} 34...
Ng6 {[%clk 0:01:23.5]} 35. Qd2 {[%clk 0:00:17.1]} 35... Qe4 {[%clk 0:01:20.8]}
36. Qe3 {[%clk 0:00:13]} 36... Nxf4 {[%clk 0:01:17.3]} 37. Qxe4 {[%clk
0:00:07.5]} 37... fxe4 {[%clk 0:01:18.2]} 0-1

[Event "Late-Titled-Tuesday-Blitz-February-13-2024"]
[Site "Chess.com"]
[Date "2024.02.13"]
[Round "1"]
[White "Jamal-Jamal-Jamal"]
[Black "KChor05"]
[Result "0-1"]
[WhiteElo "2266"]
[BlackElo "2615"]
[TimeControl "180+1"]
[EndTime "14:06:15 PST"]
[Termination "KChor05 won by resignation"]

1. d4 {[%clk 0:02:31.4]} 1... Nf6 {[%clk 0:02:59.4]} 2. c4 {[%clk 0:02:32.3]}
2... g6 {[%clk 0:02:59.2]} 3. Nf3 {[%clk 0:02:32]} 3... Bg7 {[%clk 0:02:59.7]}
4. Nc3 {[%clk 0:02:32.9]} 4... O-O {[%clk 0:02:56.4]} 5. g3 {[%clk 0:02:33.8]}
5... d6 {[%clk 0:02:56.8]} 6. Bg2 {[%clk 0:02:34.4]} 6... Nc6 {[%clk 0:02:57.1]}
7. O-O {[%clk 0:02:34.8]} 7... Bf5 {[%clk 0:02:56.9]} 8. Nh4 {[%clk 0:02:33.6]}
8... Bd7 {[%clk 0:02:57]} 9. f4 {[%clk 0:02:32.8]} 9... Na5 {[%clk 0:02:52.8]}
10. Qd3 {[%clk 0:02:29.2]} 10... c5 {[%clk 0:02:51.7]} 11. d5 {[%clk 0:02:24.3]}
11... a6 {[%clk 0:02:51]} 12. Nf3 {[%clk 0:02:14.5]} 12... b5 {[%clk 0:02:47.2]}
13. b3 {[%clk 0:02:13.4]} 13... b4 {[%clk 0:02:22.3]} 14. Nd1 {[%clk 0:02:05.7]}
14... Bf5 {[%clk 0:02:21.6]} 15. e4 {[%clk 0:01:43.5]} 15... Nxe4 {[%clk
0:02:19]} 16. Bb2 {[%clk 0:01:41.7]} 16... Nxg3 {[%clk 0:02:05.6]} 17. Qe3
{[%clk 0:01:41.4]} 17... Nxf1 {[%clk 0:02:04.2]} 18. Bxf1 {[%clk 0:01:42.3]}
18... Bxb2 {[%clk 0:01:57.5]} 19. Nxb2 {[%clk 0:01:43.2]} 19... e6 {[%clk
0:01:55.3]} 20. Ng5 {[%clk 0:01:40.9]} 20... Qf6 {[%clk 0:01:53.8]} 21. Qf2
{[%clk 0:01:29.8]} 21... exd5 {[%clk 0:01:41]} 22. cxd5 {[%clk 0:01:30.7]} 22...
c4 {[%clk 0:01:41.2]} 23. bxc4 {[%clk 0:01:26.3]} 23... Nb7 {[%clk 0:01:34.9]}
24. Re1 {[%clk 0:01:17]} 24... Nc5 {[%clk 0:01:34.1]} 25. Nd1 {[%clk 0:01:04.5]}
25... h6 {[%clk 0:01:27.4]} 26. Nf3 {[%clk 0:01:01]} 26... Bd3 {[%clk
0:01:26.9]} 27. Bh3 {[%clk 0:00:45.2]} 27... Rae8 {[%clk 0:01:20.3]} 28. Ne3
{[%clk 0:00:41.2]} 28... Qxf4 {[%clk 0:01:19.9]} 29. Ng4 {[%clk 0:00:31.7]}
29... h5 {[%clk 0:01:12.3]} 30. Qh4 {[%clk 0:00:21.4]} 30... hxg4 {[%clk
0:01:05.5]} 31. Ng5 {[%clk 0:00:18.9]} 31... Rxe1+ {[%clk 0:01:02.8]} 32. Qxe1
{[%clk 0:00:19.8]} 32... gxh3 {[%clk 0:01:00.4]} 33. Qg3 {[%clk 0:00:18.4]} 0-1

[Event "Late-Titled-Tuesday-Blitz-February-13-2024"]
[Site "Chess.com"]
[Date "2024.02.13"]
[Round "1"]
[White "RaugintaBulba"]
[Black "LiamPutnam2008"]
[Result "0-1"]
[WhiteElo "2438"]
[BlackElo "2836"]
[TimeControl "180+1"]
[EndTime "14:06:17 PST"]
[Termination "LiamPutnam2008 won by resignation"]

1. b3 {[%clk 0:02:12.6]} 1... e5 {[%clk 0:02:59.7]} 2. Bb2 {[%clk 0:02:13.5]}
2... Nc6 {[%clk 0:02:59.8]} 3. h3 {[%clk 0:02:11.3]} 3... d5 {[%clk 0:02:58.4]}
4. g4 {[%clk 0:02:11.8]} 4... h5 {[%clk 0:02:56.1]} 5. gxh5 {[%clk 0:02:09.5]}
5... Nf6 {[%clk 0:02:53.1]} 6. e3 {[%clk 0:02:05.1]} 6... Rxh5 {[%clk
0:02:51.8]} 7. Be2 {[%clk 0:02:04.2]} 7... Rh8 {[%clk 0:02:50.2]} 8. h4 {[%clk
0:02:03.7]} 8... Bf5 {[%clk 0:02:45.2]} 9. Nc3 {[%clk 0:02:02.4]} 9... d4 {[%clk
0:02:43.6]} 10. exd4 {[%clk 0:02:01.7]} 10... Nxd4 {[%clk 0:02:44.5]} 11. d3
{[%clk 0:01:58.2]} 11... Bb4 {[%clk 0:02:40]} 12. a3 {[%clk 0:01:56.6]} 12...
Qd5 {[%clk 0:02:21.6]} 13. Nf3 {[%clk 0:01:44]} 13... Nxe2 {[%clk 0:01:48.9]}
14. Qxe2 {[%clk 0:01:30.3]} 14... Bxc3+ {[%clk 0:01:48.4]} 15. Bxc3 {[%clk
0:01:30.4]} 15... O-O-O {[%clk 0:01:49.2]} 16. Rg1 {[%clk 0:01:13.4]} 16... Bg4
{[%clk 0:01:48.5]} 17. Rg3 {[%clk 0:01:09.8]} 17... Rxh4 {[%clk 0:01:40.8]} 18.
O-O-O {[%clk 0:01:05.1]} 18... Rh5 {[%clk 0:01:23.7]} 19. Rdg1 {[%clk
0:00:50.9]} 19... Rf5 {[%clk 0:01:21.4]} 20. Rxg4 {[%clk 0:00:39.1]} 20... Nxg4
{[%clk 0:01:17.6]} 21. Rxg4 {[%clk 0:00:40]} 21... Qxf3 {[%clk 0:01:16.7]} 22.
Qxf3 {[%clk 0:00:30.5]} 22... Rxf3 {[%clk 0:01:16.5]} 23. Rxg7 {[%clk
0:00:30.8]} 23... Rxf2 {[%clk 0:01:09.3]} 24. Bxe5 {[%clk 0:00:30.2]} 24... Re8
{[%clk 0:01:09.6]} 25. d4 {[%clk 0:00:30.1]} 25... c5 {[%clk 0:00:57.9]} 26. c3
{[%clk 0:00:20.4]} 26... cxd4 {[%clk 0:00:57.9]} 27. cxd4 {[%clk 0:00:21.3]}
27... Kd7 {[%clk 0:00:57.3]} 28. Kd1 {[%clk 0:00:20.9]} 28... Rc8 {[%clk
0:00:56.8]} 29. Ke1 {[%clk 0:00:19.6]} 29... Rcc2 {[%clk 0:00:56.7]} 30. d5
{[%clk 0:00:12.4]} 30... Rce2+ {[%clk 0:00:56.4]} 31. Kd1 {[%clk 0:00:12.4]}
31... Rxe5 {[%clk 0:00:57.3]} 32. Rxf7+ {[%clk 0:00:10.5]} 32... Rxf7 {[%clk
0:00:57]} 0-1